bitfinex-derivatives/quotes_BNBF0:USTF0_20250524
["timestamp","ask_amount","ask_price","bid_price","bid_amount"]
[1748044801417,0.304414,657.0,465.56,0.0214795]
[1748044801614,0.304414,657.0,475.13,0.42093742]
[1748044805420,0.304414,657.0,656.14,1.51222028]
[1748044808416,0.304414,657.0,656.08,1.51222028]
[1748044810520,0.304414,657.0,656.13,1.51222028]
[1748044810925,0.47912353,656.99,656.13,1.51222028]
[1748044811127,1.5804688,656.98,656.13,1.51222028]
[1748044811423,1.5804688,656.97,656.13,1.51222028]
[1748044811629,1.5804688,656.96,656.13,1.51222028]
[1748044811829,1.5804688,656.95,656.13,1.51222028]
[1748044812127,1.5804688,656.94,656.13,1.51222028]
[1748044812329,1.10134527,656.93,656.13,1.51222028]
[1748044812526,1.10134527,656.92,656.13,1.51222028]
[1748044812723,1.10134527,656.91,656.13,1.51222028]
[1748044812926,0.304414,657.0,656.13,1.51222028]
[1748044813128,1.57648652,656.99,656.13,1.51222028]
[1748044813324,1.57648652,656.98,656.13,1.51222028]
[1748044813528,1.57648652,656.97,656.09,1.51222028]
[1748044813725,1.57648652,656.96,656.09,1.51222028]
[1748044813925,1.57648652,656.95,656.09,1.51222028]
[1748044814127,1.57648652,656.94,656.09,1.51222028]
[1748044814324,1.5832112,656.93,656.09,1.51222028]
[1748044814530,1.5832112,656.92,656.09,1.51222028]
[1748044814726,1.5832112,656.91,656.09,1.51222028]
[1748044814930,1.58320478,656.9,656.09,1.51222028]
[1748044815230,1.58242977,656.89,656.09,1.51222028]
[1748044815531,1.58242977,656.88,656.09,1.51222028]
[1748044815829,1.58242977,656.87,656.09,1.51222028]
[1748044816029,1.58242977,656.86,656.09,1.51222028]
[1748044816224,1.58242977,656.85,656.09,1.51222028]
[1748044816529,1.12606021,656.79,655.96,1.51222028]
[1748044816726,1.10237384,656.78,655.96,1.51222028]
[1748044817032,1.58266109,656.77,655.96,1.51222028]
[1748044817230,1.10237384,656.76,655.96,1.51222028]
[1748044817430,1.10237384,656.75,655.96,1.51222028]
[1748044817631,1.10237384,656.74,655.96,1.51222028]
[1748044817930,1.10237384,656.73,655.96,1.51222028]
[1748044818130,1.10237384,656.72,655.96,1.51222028]
[1748044818330,1.10237384,656.71,655.96,1.51222028]
[1748044818532,1.1020477,656.7,655.96,1.51222028]
[1748044818725,1.1020477,656.69,655.96,1.51222028]
[1748044818930,1.1020477,656.68,655.96,1.51222028]
[1748044819130,1.1020477,656.67,655.96,1.51222028]
[1748044819327,1.58099109,656.66,655.94,1.51222028]
[1748044819625,1.58099109,656.65,655.94,1.51222028]
[1748044819826,1.1020477,656.64,655.94,1.51222028]
[1748044820026,1.1020477,656.63,655.94,1.51222028]
[1748044820327,1.1020477,656.62,655.94,1.51222028]
[1748044820524,1.58056615,656.61,655.94,1.51222028]
[1748044820724,1.58056615,656.6,655.94,1.51222028]
[1748044820931,1.1020477,656.59,655.94,1.51222028]
[1748044821231,1.12606021,656.77,655.94,1.51222028]
[1748044821424,1.57927715,656.76,655.94,1.51222028]
[1748044821629,1.57927715,656.75,655.94,1.51222028]
[1748044821831,1.12606021,656.71,655.91,1.51222028]
[1748044822031,1.10042144,656.7,655.91,1.51222028]
[1748044822332,1.10042144,656.69,655.91,1.51222028]
[1748044822531,1.12606021,656.71,655.91,1.51222028]
[1748044822832,1.10011916,656.7,655.91,1.51222028]
[1748044823129,1.12606021,656.71,655.91,1.51222028]
[1748044823130,1.10011916,656.69,655.91,1.51222028]
[1748044823328,1.10011916,656.68,655.91,1.51222028]
[1748044823527,1.10011916,656.67,655.91,1.51222028]
[1748044823730,1.09982731,656.66,655.91,1.51222028]
[1748044823927,1.0998026,656.65,655.91,1.51222028]
[1748044824132,1.12606021,656.71,655.91,1.51222028]
[1748044824334,1.57766787,656.7,655.91,1.51222028]
[1748044824527,1.57766787,656.69,655.91,1.51222028]
[1748044824828,1.57766787,656.68,655.91,1.51222028]
[1748044825027,1.57766787,656.67,655.77,2.26833043]
[1748044825227,1.09965524,656.66,655.76,1.51222028]
[1748044825428,1.12606021,656.74,655.76,1.51222028]
[1748044825632,1.57665309,656.73,655.76,1.51222028]
[1748044825932,1.57665309,656.72,655.76,1.51222028]
[1748044826134,1.57665309,656.71,655.76,1.51222028]
[1748044826433,1.57665309,656.7,655.76,1.51222028]
[1748044826628,1.57665309,656.69,655.76,1.51222028]
[1748044826831,1.57665309,656.68,655.76,1.51222028]
[1748044827035,1.57665309,656.67,655.76,1.51222028]
[1748044827232,1.57665309,656.66,655.76,1.51222028]
[1748044827429,1.57665309,656.65,655.76,1.51222028]
[1748044827633,1.57665309,656.64,655.76,1.51222028]
[1748044827932,1.12606021,656.57,655.78,1.51222028]
[1748044828230,1.09895245,656.56,655.78,1.51222028]
[1748044828430,1.12606021,656.57,655.78,1.51222028]
[1748044830240,1.09713798,656.56,655.78,1.51222028]
[1748044830441,1.09713798,656.55,655.67,1.51222028]
[1748044830642,1.09713798,656.54,655.67,1.51222028]
[1748044830938,1.09663987,656.53,655.67,1.51222028]
[1748044831133,1.57355562,656.52,655.67,1.51222028]
[1748044831340,1.09663987,656.51,655.67,1.51222028]
[1748044831537,1.09663987,656.5,655.67,1.51222028]
[1748044831735,1.12606021,656.67,655.67,1.51222028]
[1748044831936,1.57285086,656.66,655.67,1.51222028]
[1748044832137,1.57285086,656.65,655.67,1.51222028]
[1748044832338,1.57285086,656.64,655.67,1.51222028]
[1748044832540,1.57285086,656.63,655.67,1.51222028]
[1748044832741,1.57285086,656.62,655.67,1.51222028]
[1748044833041,1.57285086,656.61,655.67,1.51222028]
[1748044833241,1.57285086,656.6,655.67,1.51222028]
[1748044833441,1.57285086,656.59,655.67,1.51222028]
[1748044833641,1.09612046,656.58,655.67,1.51222028]
[1748044833844,1.09612046,656.57,655.67,1.51222028]
[1748044834040,1.12606021,656.67,655.67,1.51222028]
[1748044834244,1.12606021,656.6,655.61,1.51222028]
[1748044837246,1.12606021,656.88,655.78,1.51222028]
[1748044837544,1.39965271,656.87,655.78,1.51222028]
[1748044837745,1.39965735,656.86,655.78,1.51222028]
[1748044837946,1.39975208,656.85,655.78,1.51222028]
[1748044838146,1.39975672,656.84,655.78,1.51222028]
[1748044838349,1.39976136,656.83,655.78,1.51222028]
[1748044838649,1.09526857,656.82,655.78,1.51222028]
[1748044838942,1.57183195,656.81,655.78,1.51222028]
[1748044839147,1.57183195,656.8,655.78,1.51222028]
[1748044839446,1.57183195,656.79,655.78,1.51222028]
[1748044839647,1.57154148,656.78,655.78,1.51222028]
[1748044839846,1.57154148,656.77,655.78,1.51222028]
[1748044840046,1.57154148,656.76,655.78,1.51222028]
[1748044840247,1.57154148,656.75,655.78,1.51222028]
[1748044840542,1.0949781,656.74,655.59,1.51222028]
[1748044840842,1.0949781,656.73,655.59,1.51222028]
[1748044841042,1.0949781,656.72,655.59,1.51222028]
[1748044841245,1.0949781,656.71,655.59,1.51222028]
[1748044841443,1.094818,656.7,655.59,1.51222028]
[1748044841644,1.094818,656.69,655.59,1.51222028]
[1748044841843,1.12606021,656.77,655.59,1.51222028]
[1748044842045,1.09486866,656.76,655.59,1.51222028]
[1748044842243,1.09486866,656.75,655.59,1.51222028]
[1748044842441,1.43058081,656.77,655.59,1.51222028]
[1748044843644,0.3045206,656.77,655.83,1.51222028]
[1748044846652,0.3045206,656.77,655.82,1.51222028]
[1748044850054,0.3045206,656.77,656.04,1.51222028]
[1748044852758,0.3045206,656.77,656.01,1.51222028]
[1748044854059,1.12606021,657.07,656.01,1.51222028]
[1748044854356,1.56923886,657.06,656.01,1.51222028]
[1748044854558,1.56923886,657.05,656.01,1.51222028]
[1748044854758,1.56923886,657.04,656.01,1.51222028]
[1748044854959,1.56923886,657.03,656.01,1.51222028]
[1748044855155,1.56923886,657.02,656.01,1.51222028]
[1748044855357,1.12606021,656.82,655.73,1.51222028]
[1748044855557,1.56923886,656.81,655.74,0.30499893]
[1748044855854,1.56923886,656.8,655.74,0.30499893]
[1748044856058,1.56923886,656.79,655.74,0.30499893]
[1748044856260,1.56923886,656.78,655.74,0.30499893]
[1748044856561,1.56923886,656.77,655.74,0.30499893]
[1748044856760,1.56923886,656.76,655.74,0.30499893]
[1748044856960,1.56923886,656.75,655.74,0.30499893]
[1748044857161,1.56923886,656.74,655.74,0.30499893]
[1748044857461,1.56787059,656.73,655.74,0.30499893]
[1748044857762,0.30454843,656.71,655.73,1.51222028]
[1748044857969,0.30454843,656.71,654.82,0.48421349]
[1748044857970,1.12606021,656.57,655.44,1.51222028]
[1748044858161,1.56787059,656.56,655.44,1.51222028]
[1748044858359,1.56787059,656.55,655.44,1.51222028]
[1748044858558,1.56787059,656.54,655.44,1.51222028]
[1748044858763,1.87250251,656.53,655.44,1.51222028]
[1748044858962,1.87250715,656.52,655.44,1.51222028]
[1748044859156,1.56755352,656.51,655.44,1.51222028]
[1748044859357,1.56755352,656.5,655.44,1.51222028]
[1748044859557,1.56755352,656.49,655.44,1.51222028]
[1748044859857,1.87220865,656.48,655.44,1.51222028]
[1748044860058,1.56755352,656.47,655.44,1.51222028]
[1748044860257,1.87221793,656.46,655.44,1.51222028]
[1748044860558,1.87222257,656.45,655.44,1.51222028]
[1748044860759,1.56339485,656.44,655.44,1.51222028]
[1748044860962,1.86807318,656.43,655.44,1.51222028]
[1748044861162,0.30471547,656.35,655.44,1.51222028]
[1748044861462,1.56339485,656.34,655.44,1.51222028]
[1748044861663,1.8681196,656.33,655.44,1.51222028]
[1748044861864,0.30473404,656.31,655.44,1.51222028]
[1748044862056,1.56286024,656.3,655.44,1.51222028]
[1748044862261,0.30474797,656.28,655.44,1.51222028]
[1748044862560,1.56286024,656.27,655.44,1.51222028]
[1748044862758,0.3047619,656.25,655.44,1.51222028]
[1748044863064,1.08841004,656.24,655.44,1.51222028]
[1748044863266,1.12606021,656.13,654.94,1.51222028]
[1748044863466,0.30482228,656.12,654.94,1.51222028]
[1748044865565,1.08570057,656.11,654.94,1.51222028]
[1748044865761,0.30483158,656.1,654.94,1.51222028]
[1748044866060,0.30483158,656.1,654.83,1.51222028]
[1748044866466,1.08508645,656.09,654.83,1.51222028]
[1748044866664,1.08508645,656.08,654.83,1.51222028]
[1748044866863,1.08508645,656.07,654.83,1.51222028]
[1748044867068,1.08508645,656.06,654.83,1.51222028]
[1748044867369,0.30483158,656.1,654.83,1.51222028]
[1748044867669,1.08452184,656.09,654.83,1.51222028]
[1748044867971,1.08443932,656.08,654.83,1.51222028]
[1748044868170,0.30483158,656.1,654.83,1.51222028]
[1748044868565,0.30483158,656.1,654.7,1.51222028]
[1748044869269,0.30483158,656.1,654.71,0.30547876]
[1748044872072,0.30483158,656.1,654.86,1.51222028]
[1748044874868,0.30483158,656.1,654.71,0.30547876]
[1748044877277,0.30483158,656.1,654.77,1.51222028]
[1748044879874,0.30483158,656.1,654.78,0.3054461]
[1748044882476,0.30483158,656.1,654.87,1.51222028]
[1748044882780,0.30483158,656.1,654.88,0.30539946]
[1748044888090,0.30483158,656.1,655.04,1.51222028]
[1748044888385,0.30483158,656.1,655.04,1.81754514]
[1748044888685,1.12606021,656.57,655.05,0.3053202]
[1748044888889,1.38901781,656.56,655.05,0.3053202]
[1748044889090,0.30462264,656.55,655.05,0.3053202]
[1748044891286,0.30462264,656.55,655.17,1.51222028]
[1748044891490,0.30462264,656.55,655.18,0.30525962]
[1748044895693,1.08426155,656.54,655.18,0.30525962]
[1748044895894,0.30462264,656.55,655.18,0.30525962]
[1748044896193,1.08629808,656.54,655.18,0.30525962]
[1748044896495,0.30462264,656.55,655.18,0.30525962]
[1748044896794,1.08635109,656.54,655.18,0.30525962]
[1748044896991,0.30462264,656.55,655.18,0.30525962]
[1748044897287,1.08678397,656.54,655.18,0.30525962]
[1748044897492,0.30462264,656.55,655.18,0.30525962]
[1748044897688,1.08708984,656.54,655.14,1.51222028]
[1748044897891,1.12606021,656.69,655.14,1.51222028]
[1748044898092,1.08716188,656.68,655.14,1.51222028]
[1748044898288,1.56089684,656.67,655.14,1.51222028]
[1748044898493,1.56089684,656.66,655.14,1.51222028]
[1748044898792,1.56089684,656.65,655.14,1.51222028]
[1748044899092,1.56089684,656.64,655.14,1.51222028]
[1748044899294,1.56098826,656.63,655.14,1.51222028]
[1748044899494,1.56098826,656.62,655.14,1.51222028]
[1748044899694,1.56098826,656.61,655.14,1.51222028]
[1748044899993,1.56098826,656.6,655.14,1.51222028]
[1748044900194,1.56098826,656.59,655.14,1.51222028]
[1748044900497,1.56098826,656.58,654.98,1.51222028]
[1748044900696,1.56098826,656.57,654.98,1.51222028]
[1748044900899,1.56098826,656.56,654.98,1.51222028]
[1748044901099,1.56135711,656.55,654.98,1.51222028]
[1748044901293,1.56135711,656.54,654.98,1.51222028]
[1748044901494,1.56135711,656.53,654.98,1.51222028]
[1748044901694,1.56135711,656.52,654.98,1.51222028]
[1748044901895,1.56135711,656.51,654.98,1.51222028]
[1748044902093,1.56135711,656.5,654.98,1.51222028]
[1748044902293,1.12606021,656.61,654.98,1.51222028]
[1748044902294,1.56135711,656.49,654.98,1.51222028]
[1748044902495,1.56135711,656.48,654.98,1.51222028]
[1748044902698,1.56135711,656.47,654.98,1.51222028]
[1748044902898,1.08813015,656.46,654.98,1.51222028]
[1748044903098,1.08813015,656.45,654.98,1.51222028]
[1748044903295,1.08813015,656.44,654.98,1.51222028]
[1748044903498,1.08813015,656.43,654.98,1.51222028]
[1748044903695,1.08813015,656.42,654.98,1.51222028]
[1748044903896,1.08813015,656.41,654.98,1.51222028]
[1748044904101,1.08813015,656.4,654.98,1.51222028]
[1748044904300,1.08813015,656.39,654.98,1.51222028]
[1748044904502,1.08813015,656.38,654.98,1.51222028]
[1748044904701,1.12606021,656.49,654.98,1.51222028]
[1748044904903,1.08890561,656.48,654.98,1.51222028]
[1748044905097,1.08890561,656.47,654.98,1.51222028]
[1748044905301,1.08890561,656.46,654.98,1.51222028]
[1748044905500,1.08890561,656.45,654.98,1.51222028]
[1748044905698,1.08890561,656.44,654.98,1.51222028]
[1748044905901,1.08890561,656.43,654.98,1.51222028]
[1748044906102,1.08890561,656.42,655.02,1.51222028]
[1748044906398,1.08890561,656.41,655.02,1.51222028]
[1748044906602,1.08890561,656.4,655.02,1.51222028]
[1748044906801,1.08890561,656.39,655.02,1.51222028]
[1748044907003,1.08890561,656.38,655.02,1.51222028]
[1748044907303,1.12606021,656.57,655.02,1.51222028]
[1748044907601,1.56437695,656.56,655.02,1.51222028]
[1748044907803,1.56437695,656.55,655.02,1.51222028]
[1748044908003,1.56437695,656.54,655.02,1.51222028]
[1748044908202,1.0897684,656.53,655.02,1.51222028]
[1748044908397,1.0897684,656.52,655.02,1.51222028]
[1748044908600,1.0897684,656.51,655.02,1.51222028]
[1748044908803,1.0897684,656.5,655.02,1.51222028]
[1748044909101,1.0897684,656.49,655.02,1.51222028]
[1748044909305,1.12606021,656.74,655.02,1.51222028]
[1748044909605,1.56623029,656.73,655.02,1.51222028]
[1748044909805,1.56623029,656.72,655.02,1.51222028]
[1748044910006,1.56623029,656.71,655.02,1.51222028]
[1748044910207,1.56623029,656.7,655.02,1.51222028]
[1748044910406,1.56623029,656.69,655.02,1.51222028]
[1748044910606,1.56623029,656.68,655.02,1.51222028]
[1748044910906,1.56623029,656.67,655.02,1.51222028]
[1748044911107,1.56623029,656.66,655.02,1.51222028]
[1748044911303,1.12606021,656.63,655.26,1.51222028]
[1748044911507,1.56623029,656.62,655.26,1.51222028]
[1748044911707,1.5696843,656.61,655.26,1.51222028]
[1748044911904,1.5696843,656.6,655.26,1.51222028]
[1748044912208,1.5696843,656.59,655.26,1.51222028]
[1748044912411,1.5697021,656.58,655.26,1.51222028]
[1748044912612,1.5697021,656.57,655.26,1.51222028]
[1748044912808,1.5697021,656.56,655.26,1.51222028]
[1748044913013,1.12606021,656.63,655.26,1.51222028]
[1748044913014,1.5697021,656.55,655.26,1.51222028]
[1748044913310,1.5697021,656.54,655.26,1.51222028]
[1748044913509,1.57147218,656.53,655.26,1.51222028]
[1748044913812,1.57147218,656.52,655.26,1.51222028]
[1748044914009,1.57143705,656.51,655.26,1.51222028]
[1748044914209,1.12606021,656.45,655.21,1.51222028]
[1748044914409,1.57143705,656.44,655.21,1.51222028]
[1748044914710,1.57143705,656.43,655.21,1.51222028]
[1748044914910,1.57143705,656.42,655.21,1.51222028]
[1748044915115,1.57143705,656.41,655.21,1.51222028]
[1748044915315,1.57254599,656.4,655.21,1.51222028]
[1748044915512,1.57254599,656.39,655.21,1.51222028]
[1748044915713,1.57254599,656.38,655.21,1.51222028]
[1748044915917,1.57254599,656.37,655.21,1.51222028]
[1748044916214,1.57254599,656.36,655.21,1.51222028]
[1748044916409,1.57254599,656.35,655.21,1.51222028]
[1748044916614,1.57254599,656.34,655.21,1.51222028]
[1748044916815,1.57254599,656.33,655.21,1.51222028]
[1748044917015,1.57254599,656.32,655.21,1.51222028]
[1748044917217,1.57254599,656.31,655.21,1.51222028]
[1748044917517,1.12606021,656.24,655.23,1.51222028]
[1748044917712,1.57266552,656.23,655.23,1.51222028]
[1748044917914,1.09514834,656.22,655.23,1.51222028]
[1748044918116,1.12606021,656.24,655.23,1.51222028]
[1748044918117,1.09514834,656.21,655.23,1.51222028]
[1748044918313,1.09514834,656.2,655.23,1.51222028]
[1748044918517,1.09514834,656.19,655.23,1.51222028]
[1748044918817,1.09545875,656.18,655.23,1.51222028]
[1748044919011,1.09545875,656.17,655.23,1.51222028]
[1748044919215,1.09545875,656.16,655.23,1.51222028]
[1748044919416,1.09545875,656.15,655.23,1.51222028]
[1748044919721,1.09545875,656.14,655.23,1.51222028]
[1748044920018,0.30482228,656.12,655.23,1.51222028]
[1748044920218,1.09545875,656.11,655.06,1.51222028]
[1748044920416,1.09545875,656.1,655.06,1.51222028]
[1748044920613,1.57294956,656.09,655.06,1.51222028]
[1748044920815,1.09545875,656.08,655.06,1.51222028]
[1748044921014,0.30485016,656.06,655.06,1.51222028]
[1748044921219,1.5728539,656.05,655.06,1.51222028]
[1748044921420,1.57271965,656.04,655.06,1.51222028]
[1748044921721,1.57185824,656.03,655.06,1.51222028]
[1748044921915,1.57185824,656.02,655.06,1.51222028]
[1748044922118,1.57185824,656.01,655.06,1.51222028]
[1748044922318,1.57185824,656.0,655.06,1.51222028]
[1748044922515,0.30488734,655.98,655.06,1.51222028]
[1748044922718,1.5717434,655.97,654.92,1.51222028]
[1748044922919,1.5717434,655.96,654.92,1.51222028]
[1748044923116,1.5717434,655.95,654.92,1.51222028]
[1748044923321,1.5717434,655.94,654.92,1.51222028]
[1748044923520,1.56990276,655.93,654.92,1.51222028]
[1748044923718,1.56990276,655.92,654.92,1.51222028]
[1748044923917,1.56990276,655.91,654.92,1.51222028]
[1748044924213,1.56990276,655.9,654.92,1.51222028]
[1748044924417,1.56990276,655.89,654.92,1.51222028]
[1748044924617,0.30493847,655.87,654.92,1.51222028]
[1748044924815,1.56990276,655.86,654.92,1.51222028]
[1748044925018,1.09331873,655.85,654.92,1.51222028]
[1748044925217,1.09331873,655.84,654.92,1.51222028]
[1748044925418,0.30496172,655.82,654.92,1.51222028]
[1748044925717,0.30496172,655.82,654.74,1.51222028]
[1748044927525,1.09122912,655.81,654.74,1.51222028]
[1748044927718,0.30497567,655.79,654.74,1.51222028]
[1748044928018,1.09103281,655.78,654.74,1.51222028]
[1748044928222,0.30498963,655.76,654.74,1.51222028]
[1748044928522,1.09053303,655.75,654.74,1.51222028]
[1748044928821,0.30500358,655.73,654.74,1.51222028]
[1748044929325,0.30500358,655.73,654.55,1.51222028]
[1748044932221,0.30500358,655.73,654.68,2.26833043]
[1748044932422,0.30500358,655.73,654.81,1.51222028]
[1748044933727,0.30500358,655.73,654.65,1.51222028]
[1748044935529,0.30500358,655.73,654.6,1.51222028]
[1748044936234,1.08855433,655.72,654.6,1.51222028]
[1748044936527,0.30500358,655.73,654.6,1.51222028]
[1748044937533,0.30500358,655.73,654.48,1.51222028]
[1748044939836,1.08702935,655.72,654.48,1.51222028]
[1748044940034,1.08702935,655.71,654.48,1.51222028]
[1748044940535,1.08702935,655.71,654.41,1.51222028]
[1748044940735,1.39204223,655.71,654.41,1.51222028]
[1748044940936,1.08702935,655.7,654.41,1.51222028]
[1748044941134,1.08702935,655.69,654.41,1.51222028]
[1748044941330,1.08702935,655.68,654.41,1.51222028]
[1748044941634,1.08702935,655.67,654.41,1.51222028]
[1748044941830,1.08702935,655.66,654.41,1.51222028]
[1748044942133,1.08702935,655.65,654.41,1.51222028]
[1748044942330,1.08702935,655.64,654.41,1.51222028]
[1748044942529,1.08702935,655.63,654.41,1.51222028]
[1748044942737,1.08702935,655.62,654.41,1.51222028]
[1748044943034,1.08702935,655.61,654.41,1.51222028]
[1748044943234,0.30501288,655.71,654.41,1.51222028]
[1748044943439,1.08473542,655.7,654.41,1.51222028]
[1748044943637,1.08473542,655.69,654.41,1.51222028]
[1748044943832,0.30501753,655.7,653.72,3.78055072]
[1748044943833,1.08473542,655.68,654.25,1.51222028]
[1748044944037,1.08473542,655.67,654.26,0.30568886]
[1748044944238,1.08473542,655.66,654.26,0.30568886]
[1748044944451,0.30501753,655.7,654.26,0.30568886]
[1748044944633,1.08434452,655.69,654.26,0.30568886]
[1748044944939,0.30501753,655.7,654.25,1.51222028]
[1748044945144,1.08437767,655.69,654.25,1.51222028]
[1748044945341,0.30503149,655.67,654.25,1.51222028]
[1748044946041,0.30503149,655.67,654.2,1.51222028]
[1748044950146,0.30503149,655.67,654.32,1.51222028]
[1748044952646,0.30503149,655.67,654.34,1.51222028]
[1748044955250,1.11146779,655.66,654.34,1.51222028]
[1748044955450,0.30504545,655.64,654.34,1.51222028]
[1748044955651,1.11146779,655.63,654.34,1.51222028]
[1748044955847,0.30505475,655.62,654.34,1.51222028]
[1748044956047,0.30505475,655.62,654.38,1.51222028]
[1748044958946,0.30505475,655.62,654.42,1.51222028]
[1748044962950,0.30505475,655.62,654.46,1.51222028]
[1748044965448,0.30505475,655.62,654.58,1.51222028]
[1748044968756,0.30505475,655.62,654.64,1.51222028]
[1748044972163,0.30505475,655.62,654.65,1.51222028]
[1748044975563,0.30505475,655.62,654.79,1.51222028]
[1748044978467,0.30505475,655.62,655.37,1.51222028]
[1748044980970,0.30505475,655.62,655.24,1.51222028]
[1748044981372,1.12606021,656.43,655.24,1.51222028]
[1748044981569,0.30468761,656.41,655.24,1.51222028]
[1748044981868,1.65740575,656.4,655.24,1.51222028]
[1748044982069,0.30470154,656.38,655.24,1.51222028]
[1748044982265,1.14548099,656.37,655.24,1.51222028]
[1748044982465,0.30471547,656.35,655.24,1.51222028]
[1748044982670,1.14548099,656.34,655.24,1.51222028]
[1748044982871,0.3047294,656.32,655.24,1.51222028]
[1748044983366,0.3047294,656.32,655.32,1.51222028]
[1748044983671,1.13878411,656.31,655.32,1.51222028]
[1748044983875,1.44352279,656.3,655.32,1.51222028]
[1748044984175,1.13878411,656.29,655.32,1.51222028]
[1748044984375,1.44353208,656.28,655.32,1.51222028]
[1748044984568,1.44353672,656.27,655.32,1.51222028]
[1748044984772,1.44354137,656.26,655.32,1.51222028]
[1748044984974,1.44354601,656.25,655.32,1.51222028]
[1748044985273,0.30476654,656.24,655.32,1.51222028]
[1748044985873,0.30476654,656.24,655.22,1.51222028]
[1748044987676,1.13364076,656.23,655.22,1.51222028]
[1748044987873,0.30478048,656.21,655.22,1.51222028]
[1748044988674,0.30478048,656.21,655.23,1.51222028]
[1748044990780,0.30478048,656.21,655.31,1.51222028]
[1748044994285,0.30478048,656.21,655.18,1.51222028]
[1748044997386,0.30478048,656.21,654.99,1.51222028]
[1748044997788,1.13565311,656.2,654.99,1.51222028]
[1748044997987,1.13565311,656.19,654.99,1.51222028]
[1748044998182,1.13565311,656.18,654.99,1.51222028]
[1748044998381,1.13565311,656.17,654.99,1.51222028]
[1748044998682,1.13565311,656.16,655.0,0.30534351]
[1748044998989,1.13565311,656.15,655.0,0.30534351]
[1748044999187,1.13480709,656.14,655.0,0.30534351]
[1748044999487,1.13480709,656.13,655.0,0.30534351]
[1748044999681,1.13480709,656.12,655.0,0.30534351]
[1748044999883,1.13480709,656.11,655.0,0.30534351]
[1748045000082,1.13480709,656.1,655.0,0.30534351]
[1748045000284,1.13480709,656.09,655.0,0.30534351]
[1748045000482,1.13480709,656.08,655.0,0.30534351]
[1748045000688,0.30478048,656.21,655.0,0.30534351]
[1748045000888,1.13050251,656.2,655.0,0.30534351]
[1748045001085,0.30478048,656.21,655.0,0.30534351]
[1748045004189,0.30478048,656.21,654.97,1.51222028]
[1748045006886,0.30478048,656.21,655.0,2.26833043]
[1748045007091,0.30478048,656.21,655.16,1.51222028]
[1748045009994,1.12606021,656.88,655.16,1.51222028]
[1748045009995,1.12606021,656.88,655.17,0.30526428]
[1748045010187,0.30447888,656.86,655.21,1.51222028]
[1748045010391,1.64134269,656.85,655.21,1.51222028]
[1748045010587,0.30449279,656.83,655.21,1.51222028]
[1748045010794,1.64134269,656.82,655.21,1.51222028]
[1748045010994,0.30450669,656.8,655.21,1.51222028]
[1748045011297,1.64134269,656.79,655.21,1.51222028]
[1748045011595,0.3045206,656.77,655.21,1.51222028]
[1748045011795,1.64134269,656.76,655.21,1.51222028]
[1748045012094,0.30453451,656.74,655.21,1.51222028]
[1748045012297,1.64415519,656.73,655.21,1.51222028]
[1748045012597,0.30454843,656.71,655.21,1.51222028]
[1748045012894,1.64561683,656.7,655.21,1.51222028]
[1748045013095,0.30456234,656.68,655.21,1.51222028]
[1748045013397,1.64561683,656.67,655.17,0.30526428]
[1748045013591,0.30457625,656.65,655.17,0.30526428]
[1748045013896,1.64577117,656.64,655.17,0.30526428]
[1748045014093,0.30459017,656.62,655.17,0.30526428]
[1748045014296,1.64577117,656.61,655.17,0.30526428]
[1748045014498,0.30460409,656.59,655.17,0.30526428]
[1748045014698,1.64577117,656.58,655.17,0.30526428]
[1748045014899,0.304618,656.56,655.17,0.30526428]
[1748045015105,1.64577117,656.55,655.17,0.30526428]
[1748045015296,0.30463192,656.53,655.17,0.30526428]
[1748045015492,1.13666128,656.52,655.17,0.30526428]
[1748045015694,0.30464584,656.5,655.17,0.30526428]
[1748045015895,1.14086026,656.49,655.17,0.30526428]
[1748045016094,1.44551539,656.48,655.17,0.30526428]
[1748045016300,1.44552003,656.47,655.17,0.30526428]
[1748045016598,1.14086026,656.46,655.17,0.30526428]
[1748045016794,1.44552931,656.45,655.17,0.30526428]
[1748045017000,1.44553395,656.44,655.17,0.30526428]
[1748045017199,1.44553859,656.43,655.17,0.30526428]
[1748045017399,1.44554323,656.42,655.17,0.30526428]
[1748045017595,1.44554787,656.41,655.17,0.30526428]
[1748045017795,1.44555252,656.4,655.17,0.30526428]
[1748045018000,0.3046969,656.39,655.17,0.30526428]
[1748045020402,0.3046969,656.39,655.36,1.51222028]
[1748045024196,0.3046969,656.39,655.53,1.51222028]
[1748045026798,1.12606021,657.18,655.53,1.51222028]
[1748045027000,0.30433988,657.16,655.53,1.51222028]
[1748045027200,1.64793843,657.15,655.53,1.51222028]
[1748045027404,0.30435378,657.13,655.53,1.51222028]
[1748045027603,1.64793843,657.12,655.53,1.51222028]
[1748045027804,0.30436767,657.1,655.53,1.51222028]
[1748045027999,1.64787887,657.09,655.53,1.51222028]
[1748045028206,0.30438157,657.07,655.6,1.51222028]
[1748045028499,1.64787887,657.06,655.6,1.51222028]
[1748045028700,0.30439547,657.04,655.6,1.51222028]
[1748045028903,1.64787887,657.03,655.6,1.51222028]
[1748045029104,1.12606021,657.36,655.6,1.51222028]
[1748045029105,1.9522836,657.02,655.6,1.51222028]
[1748045029305,1.95228823,657.01,655.6,1.51222028]
[1748045029605,1.95229287,657.0,655.6,1.51222028]
[1748045029804,1.9522975,656.99,655.6,1.51222028]
[1748045030004,1.95230214,656.98,655.6,1.51222028]